bitfinex/quotes_BTCUSD_20240715
["timestamp","ask_amount","ask_price","bid_price","bid_amount"]
[1721020058624,0.00833,62901.0,62900.0,0.0261482]
[1721020058625,0.20622533,62901.0,62900.0,0.0261482]
[1721020058922,0.20622533,62901.0,62900.0,0.0121482]
[1721020058923,0.2161355,62901.0,62900.0,0.0121482]
[1721020059125,0.2161355,62901.0,62894.0,0.00317939]
[1721020059126,0.19789533,62900.0,62899.0,0.143085]
[1721020059333,0.1205178,62901.0,62900.0,0.143084]
[1721020059564,0.1205178,62901.0,62894.0,0.00923415]
[1721020059565,0.1121878,62893.0,62892.0,0.143102]
[1721020059785,0.1121878,62893.0,62892.0,0.429306]
[1721020059991,0.14580753,62894.0,62892.0,0.429306]
[1721020059992,0.25799533,62894.0,62893.0,0.4293]
[1721020060342,0.0601,62894.0,62893.0,0.9293]
[1721020060544,0.0601,62894.0,62893.0,0.4293]
[1721020060775,0.08570753,62898.0,62893.0,0.7862]
[1721020060776,0.0601,62898.0,62893.0,0.7862]
[1721020061005,0.0601,62898.0,62895.0,0.28619]
[1721020061136,0.1121878,62897.0,62896.0,0.143092]
[1721020061510,0.19789533,62897.0,62896.0,0.15321906]
[1721020061668,0.20780607,62897.0,62896.0,0.01012706]
[1721020061866,1.12616132,62897.0,62896.0,0.01012706]
[1721020062213,0.19789533,62889.0,62888.0,0.493759]
[1721020062331,0.20780632,62889.0,62888.0,0.493759]
[1721020062548,0.20780632,62889.0,62888.0,0.50390774]
[1721020063648,0.20780632,62889.0,62888.0,0.51790774]
[1721020063864,1.22253333,62889.0,62888.0,0.02414874]
[1721020064071,0.48393333,62876.0,62875.0,0.4771]
[1721020064277,0.48393333,62876.0,62869.0,0.000913]
[1721020064278,0.19789533,62871.0,62869.0,0.000913]
[1721020064700,0.19789533,62870.0,62869.0,0.000913]
[1721020065089,1.06647263,62870.0,62869.0,0.000913]
[1721020065270,1.41277763,62870.0,62869.0,0.000913]
[1721020065652,1.48421793,62870.0,62869.0,0.014913]
[1721020065851,1.43768674,62870.0,62869.0,0.014913]
[1721020066062,0.1429,62862.0,62855.0,0.143186]
[1721020066262,0.1429,62862.0,62850.0,0.143197]
[1721020066263,0.1121878,62852.0,62850.0,0.143197]
[1721020066454,0.19789533,62850.0,62847.0,1.2681]
[1721020066816,0.1121878,62849.0,62847.0,1.411304]
[1721020067205,0.1121878,62849.0,62845.0,0.143208]
[1721020067206,0.2598878,62849.0,62845.0,0.143208]
[1721020067410,0.1121878,62845.0,62841.0,0.5]
[1721020067651,0.1477,62849.0,62848.0,0.643202]
[1721020067827,0.08570753,62856.0,62855.0,0.142186]
[1721020067828,0.1121878,62856.0,62855.0,0.142186]
[1721020068031,0.1477,62858.0,62857.0,0.143182]
[1721020068172,0.19789533,62860.0,62859.0,0.429532]
[1721020068562,0.19789533,62860.0,62859.0,0.428532]
[1721020068765,0.19789533,62858.0,62857.0,0.142181]
[1721020068959,0.19789533,62858.0,62857.0,0.428545]
[1721020069342,0.577196,62865.0,62858.0,0.5]
[1721020069343,0.11525133,62864.0,62858.0,0.5]
[1721020069551,0.11525133,62864.0,62863.0,0.143168]
[1721020069552,0.00306353,62864.0,62863.0,0.143168]
[1721020069751,0.09525373,62883.0,62863.0,0.143168]
[1721020069752,0.00306353,62869.0,62868.0,0.143157]
[1721020069867,0.00306353,62869.0,62868.0,0.14633785]
[1721020070091,0.00306353,62874.0,62868.0,0.00318085]
[1721020070292,0.00306353,62874.0,62873.0,0.428436]
[1721020070549,0.01665769,62876.0,62873.0,0.428436]
[1721020070550,0.01665769,62876.0,62875.0,0.715705]
[1721020070759,0.01665769,62876.0,62875.0,1.101987]
[1721020070970,0.01665769,62876.0,62875.0,1.123987]
[1721020071389,0.01665769,62876.0,62875.0,0.523423]
[1721020071536,0.01665769,62876.0,62875.0,0.236141]
[1721020071742,0.19789533,62873.0,62867.0,0.286315]
[1721020072088,0.19789533,62873.0,62872.0,0.143147]
[1721020072089,0.1121878,62873.0,62872.0,0.143147]
[1721020072444,0.19789533,62873.0,62872.0,0.143147]
[1721020072681,0.19789533,62873.0,62868.0,0.1]
[1721020072682,0.19789533,62869.0,62868.0,0.1]
[1721020072886,0.19789533,62869.0,62862.0,0.78634]
[1721020072887,0.1121878,62863.0,62862.0,0.28634]
[1721020073090,0.19789533,62864.0,62863.0,0.429504]
[1721020073323,0.1472,62869.0,62862.0,0.6]
[1721020073324,0.19789533,62863.0,62862.0,0.5]
[1721020073556,0.1121878,62863.0,62862.0,0.14317]
[1721020073806,0.1121878,62863.0,62862.0,0.429511]
[1721020074002,0.1472,62869.0,62862.0,0.286341]
[1721020074003,0.1121878,62867.0,62862.0,0.286341]
[1721020074174,0.1121878,62865.0,62864.0,0.142165]
[1721020074735,0.1121878,62867.0,62865.0,0.143162]
[1721020075071,0.2593878,62869.0,62868.0,0.143157]
[1721020075281,0.2539878,62875.0,62873.0,0.286291]
[1721020075478,0.1121878,62874.0,62872.0,0.143146]
[1721020075642,0.1121878,62869.0,62868.0,0.143157]
[1721020076090,0.19789533,62869.0,62868.0,0.143157]
[1721020076239,0.1121878,62869.0,62868.0,0.429467]
[1721020076444,0.1418,62875.0,62870.0,0.143152]
[1721020076445,0.19789533,62871.0,62870.0,0.143152]
[1721020077272,0.1121878,62874.0,62867.0,0.5]
[1721020077509,0.1418,62875.0,62874.0,0.429429]
[1721020077715,0.0814,62875.0,62874.0,0.429429]
[1721020077931,0.19789533,62871.0,62870.0,0.011]
[1721020078077,0.19889533,62871.0,62870.0,0.006]
[1721020078933,0.34204533,62871.0,62870.0,0.006]
[1721020079132,1.04024533,62871.0,62870.0,0.006]
[1721020079330,0.69394533,62871.0,62870.0,0.006]
[1721020079588,0.1121878,62862.0,62860.0,0.286349]
[1721020079733,0.1121878,62862.0,62859.0,0.1]
[1721020079734,0.19789533,62862.0,62861.0,0.1]
[1721020079935,0.0758,62863.0,62850.0,0.4771]
[1721020079936,0.1121878,62856.0,62850.0,0.4771]
[1721020080134,0.08570753,62857.0,62855.0,0.143186]
[1721020080135,0.1121878,62857.0,62855.0,0.143186]
[1721020080359,0.1121878,62859.0,62856.0,0.143184]
[1721020080541,0.1121878,62859.0,62857.0,0.143181]
[1721020080881,0.1121878,62859.0,62858.0,0.143179]
[1721020081479,0.19789533,62859.0,62858.0,0.143179]
[1721020081684,0.1121878,62859.0,62858.0,0.143179]
[1721020081899,0.1121878,62865.0,62858.0,0.0634]
[1721020082099,0.06,62876.0,62858.0,0.0634]
[1721020082100,0.19789533,62869.0,62868.0,0.143157]
[1721020082309,0.19789533,62869.0,62863.0,0.786335]
[1721020082310,0.1121878,62865.0,62863.0,0.786335]
[1721020082458,0.1121878,62867.0,62866.0,0.286323]
[1721020082675,0.1121878,62867.0,62866.0,0.429484]
[1721020083063,0.1121878,62869.0,62868.0,0.143157]
[1721020083292,0.22230753,62870.0,62869.0,0.429463]
[1721020083293,0.1366,62870.0,62869.0,0.429463]
[1721020083701,0.06306353,62883.0,62876.0,0.286277]
[1721020083702,0.0767,62880.0,62876.0,0.286277]
[1721020083935,0.01665968,62885.0,62884.0,0.286241]
[1721020084158,0.01665968,62885.0,62884.0,0.429361]
[1721020084338,0.0767,62889.0,62880.0,0.5]
[1721020084535,0.0666,62894.0,62893.0,0.7155]
[1721020084768,0.0767,62897.0,62889.0,0.5]
[1721020084930,0.0608,62899.0,62898.0,0.429265]
[1721020085172,0.0765,62903.0,62890.0,0.08105238]
[1721020085296,0.00833,62912.0,62900.0,1.27612]
[1721020085500,0.00833,62912.0,62900.0,1.863488]
[1721020085501,0.01665464,62907.0,62900.0,1.863488]
[1721020085706,0.00833,62912.0,62900.0,1.863488]
[1721020086054,0.00833,62912.0,62900.0,1.963488]
[1721020086760,0.00833,62912.0,62900.0,1.624588]
[1721020086761,0.19789533,62903.0,62900.0,1.624588]
[1721020086899,0.1121878,62905.0,62900.0,0.81542]
[1721020087106,0.20622533,62901.0,62900.0,0.143084]
[1721020087312,0.20622533,62901.0,62897.0,0.143091]
[1721020087313,0.1121878,62898.0,62897.0,0.143091]
[1721020087509,0.1121878,62890.0,62889.0,0.620209]
[1721020087720,0.1121878,62890.0,62878.0,0.4771]
[1721020087721,0.19789533,62886.0,62878.0,0.4771]
[1721020087921,0.1453,62893.0,62878.0,0.4771]
[1721020087922,0.1121878,62884.0,62878.0,0.286268]
[1721020088120,0.1121878,62885.0,62879.0,0.00318036]
[1721020088321,0.19789533,62887.0,62886.0,0.143116]
[1721020088559,0.1721878,62879.0,62878.0,0.286265]
[1721020088776,0.1721878,62879.0,62878.0,0.429402]
[1721020089031,0.02570753,62880.0,62878.0,0.429402]
[1721020089032,0.1721878,62881.0,62880.0,0.429388]
[1721020089251,0.1721878,62885.0,62876.0,0.286275]
[1721020089482,0.19789533,62885.0,62884.0,0.14312]
[1721020089732,0.19789533,62877.0,62876.0,0.286276]
[1721020089948,0.19789533,62877.0,62872.0,0.286292]
[1721020090154,0.286242,62884.0,62882.0,0.143125]
[1721020090155,0.1721878,62883.0,62882.0,0.143125]
[1721020090385,0.1121878,62884.0,62879.0,0.014]
[1721020090613,0.1121878,62884.0,62883.0,0.143122]
[1721020091040,0.1121878,62884.0,62883.0,0.15044956]
[1721020091229,0.1121878,62884.0,62883.0,0.00732756]
[1721020091426,0.19789533,62884.0,62883.0,0.00732756]
[1721020091647,0.19789533,62884.0,62883.0,0.143122]
[1721020091846,0.19789533,62884.0,62883.0,0.429367]
[1721020092048,0.19789533,62884.0,62883.0,0.43669617]
[1721020092254,0.1121878,62884.0,62883.0,0.43669617]
[1721020092458,0.19789533,62885.0,62884.0,0.429361]
[1721020092800,0.19789533,62885.0,62884.0,0.43668746]
[1721020093000,0.19789533,62887.0,62886.0,0.143116]
[1721020093204,0.19789533,62887.0,62884.0,0.15044446]
[1721020093401,0.19789533,62884.0,62883.0,0.014]
[1721020093823,0.19789533,62883.0,62882.0,0.143123]
[1721020094254,0.19789533,62883.0,62878.0,0.286267]
[1721020094255,0.19789533,62881.0,62880.0,0.143128]
[1721020094850,0.203117,62886.0,62870.0,0.4771]
[1721020094851,0.33959533,62879.0,62870.0,0.4771]
[1721020095054,0.19789533,62871.0,62870.0,0.4771]
[1721020095369,0.1417,62879.0,62869.0,0.143154]
[1721020095370,0.19789533,62870.0,62869.0,0.143154]
[1721020095527,0.19789533,62867.0,62866.0,0.000913]
[1721020095728,0.19789533,62867.0,62866.0,0.144074]
[1721020095729,0.1721878,62867.0,62866.0,0.144074]
[1721020096182,0.1721878,62867.0,62866.0,0.000913]
[1721020096183,0.19789533,62867.0,62866.0,0.000913]
[1721020096384,0.56854386,62867.0,62866.0,0.000913]
[1721020096728,0.85486186,62867.0,62866.0,0.000913]
[1721020096915,0.34107933,62856.0,62855.0,1.2571]
[1721020097038,0.1121878,62853.0,62852.0,0.143193]
[1721020097239,0.1121878,62856.0,62850.0,0.286393]
[1721020097452,0.1121878,62856.0,62851.0,0.286387]
[1721020097659,0.19789533,62854.0,62853.0,0.14319]
[1721020098065,0.1721878,62855.0,62853.0,0.14319]
[1721020098378,0.003,62867.0,62861.0,0.5]
[1721020098607,0.1151878,62867.0,62866.0,0.143161]
[1721020098869,0.1121878,62867.0,62866.0,0.143161]
[1721020099126,0.19789533,62862.0,62861.0,0.643171]
[1721020099375,0.06,62869.0,62849.0,0.1437]
[1721020099376,0.1121878,62858.0,62855.0,0.786372]
[1721020099605,0.1721878,62860.0,62859.0,0.143177]
[1721020099836,0.19789533,62860.0,62859.0,0.143177]
[1721020100300,0.1721878,62860.0,62859.0,0.428532]
[1721020100745,0.1721878,62860.0,62855.0,0.5]
[1721020100746,0.19789533,62858.0,62857.0,0.14318]
[1721020100967,0.19789533,62858.0,62857.0,0.429544]
[1721020101187,0.19789533,62858.0,62857.0,0.715908]
[1721020101395,0.1731878,62860.0,62859.0,0.143177]
[1721020101599,0.001,62860.0,62859.0,1.002242]
[1721020101809,0.19789533,62863.0,62862.0,0.429511]
[1721020102016,0.1095013,62863.0,62862.0,0.429511]
[1721020102219,0.1695013,62863.0,62862.0,0.714852]
[1721020102546,0.1095013,62867.0,62861.0,0.5]
[1721020102740,0.1095013,62867.0,62866.0,0.143161]
[1721020102948,0.19520883,62867.0,62866.0,0.429484]
[1721020103710,0.00291299,62872.0,62871.0,0.71575]
[1721020103830,0.08570753,62877.0,62876.0,0.429415]
[1721020103831,0.1095013,62877.0,62876.0,0.429415]
[1721020104039,0.1095013,62877.0,62876.0,0.715692]
[1721020104241,0.19520883,62877.0,62876.0,0.429415]
[1721020104441,0.19501739,62877.0,62876.0,0.429415]
[1721020105727,0.19501739,62877.0,62876.0,0.433415]
[1721020105878,0.19501739,62877.0,62876.0,0.4411894]
[1721020106488,0.25501739,62877.0,62876.0,0.0197744]
[1721020106853,0.19501739,62877.0,62876.0,0.0197744]
[1721020107280,0.19501739,62877.0,62876.0,0.0157744]
[1721020107823,0.83062639,62877.0,62876.0,0.0117744]
[1721020108023,1.40317239,62877.0,62876.0,0.012]
[1721020108226,1.4159953,62877.0,62876.0,0.012]
[1721020108400,1.1297223,62877.0,62876.0,0.012]
[1721020108801,1.1297223,62877.0,62876.0,0.008]
[1721020109121,1.11689939,62877.0,62876.0,0.008]
[1721020109388,0.19501739,62868.0,62867.0,0.429476]
[1721020109762,0.00306353,62876.0,62861.0,0.429516]
[1721020109763,0.19501739,62862.0,62861.0,0.429516]
[1721020110307,0.19501739,62862.0,62854.0,0.349377]
[1721020110598,0.10930986,62856.0,62855.0,0.386373]
[1721020110750,0.10930986,62856.0,62855.0,0.529559]
[1721020110945,0.19501739,62857.0,62856.0,0.429552]
[1721020111591,0.19501739,62857.0,62856.0,0.71592]
[1721020111800,0.19501739,62857.0,62856.0,0.143184]
[1721020112017,0.19501739,62857.0,62850.0,0.763494]
[1721020112146,0.286353,62860.0,62850.0,0.763494]
[1721020112147,0.19501739,62851.0,62850.0,0.906692]
[1721020112497,0.19501739,62851.0,62850.0,1.293088]
[1721020113489,0.19501739,62851.0,62850.0,1.307088]
[1721020113893,0.10930986,62853.0,62852.0,0.42958]
[1721020114096,0.10930986,62855.0,62854.0,0.643188]
[1721020114273,0.10930986,62856.0,62855.0,0.143186]
[1721020114475,0.19501739,62856.0,62855.0,0.429559]
[1721020115092,0.00306353,62861.0,62850.0,0.157196]
[1721020115093,0.19501739,62851.0,62850.0,0.157196]
[1721020115337,0.27751739,62851.0,62850.0,0.014]
[1721020115839,0.19501739,62849.0,62848.0,0.206997]
[1721020116364,0.19501739,62849.0,62838.0,0.000913]
[1721020116365,0.14321,62845.0,62838.0,0.000913]
[1721020116527,0.19501739,62840.0,62838.0,0.144137]
[1721020116762,0.2864,62849.0,62838.0,0.144137]
[1721020116763,0.19501739,62841.0,62840.0,0.14322]
[1721020116932,0.19501739,62841.0,62840.0,0.207026]
[1721020117343,0.56365439,62841.0,62838.0,0.000913]
[1721020117543,0.62468639,62839.0,62838.0,0.000913]
[1721020117676,0.62468639,62839.0,62838.0,0.0008618]
[1721020118303,0.33824039,62839.0,62838.0,0.0008618]
[1721020118529,0.19501739,62839.0,62838.0,0.0008618]
[1721020118870,0.10930986,62841.0,62840.0,0.14322]
[1721020119078,0.10930986,62839.0,62838.0,0.15741196]
[1721020119250,0.10930986,62839.0,62838.0,0.4355348]
[1721020119806,0.10930986,62841.0,62840.0,0.14322]
[1721020120008,0.286407,62848.0,62838.0,0.0058618]
[1721020120009,0.19501739,62839.0,62838.0,0.0058618]
[1721020120236,0.19501739,62839.0,62838.0,0.0168618]
[1721020120237,0.33824039,62839.0,62838.0,0.0168618]
[1721020120395,0.33824039,62839.0,62838.0,0.0118618]
[1721020120605,0.97433239,62839.0,62838.0,0.0008618]
[1721020120809,1.41387323,62839.0,62838.0,0.0208618]
[1721020121014,1.54863998,62839.0,62838.0,0.0208618]
[1721020121378,1.54763998,62839.0,62838.0,0.0008618]
[1721020121675,1.54763998,62839.0,62838.0,0.0078618]
[1721020121676,1.54863998,62839.0,62838.0,0.0078618]
[1721020121875,1.41387323,62839.0,62838.0,0.0078618]
[1721020122079,1.41387323,62839.0,62838.0,0.0188618]
[1721020122291,1.41287323,62839.0,62838.0,0.0118618]
[1721020122456,1.41487323,62839.0,62838.0,0.0118618]
[1721020122844,1.12842723,62839.0,62838.0,0.0118618]
[1721020123163,1.12842741,62839.0,62838.0,0.0118618]
[1721020123684,1.11853239,62839.0,62838.0,0.0118618]
[1721020123927,1.11653239,62839.0,62838.0,0.0118618]
[1721020124099,1.12642663,62839.0,62838.0,0.0008618]
[1721020124339,1.12642663,62839.0,62838.0,0.0038618]
[1721020124340,1.12842663,62839.0,62838.0,0.0038618]
[1721020124575,0.77208639,62839.0,62838.0,0.0008618]
[1721020124723,0.76939989,62839.0,62838.0,0.0008618]
[1721020124922,0.76939989,62839.0,62838.0,0.0038618]
[1721020125123,0.48295389,62839.0,62838.0,0.0038618]
[1721020125447,0.76939989,62839.0,62838.0,0.0038618]
[1721020125801,0.48295389,62839.0,62838.0,0.0038618]
[1721020126193,0.33755389,62839.0,62838.0,0.0038618]
[1721020126403,0.33755389,62839.0,62838.0,0.1470868]
[1721020126404,0.002,62839.0,62838.0,0.1470868]
[1721020126599,0.002,62839.0,62838.0,0.44210375]
[1721020126965,0.002,62839.0,62838.0,0.15565375]
[1721020127138,0.10930986,62841.0,62839.0,0.143222]
[1721020127344,0.10930986,62841.0,62838.0,0.01242875]
[1721020127510,0.143215,62843.0,62838.0,0.01242875]
[1721020127511,0.19433089,62839.0,62838.0,0.1470868]
[1721020127914,0.19233089,62839.0,62838.0,0.1470868]
[1721020128138,0.19233089,62839.0,62838.0,0.1440868]
[1721020128348,0.18452943,62839.0,62838.0,0.0008618]
[1721020128554,0.18452943,62839.0,62838.0,0.0028618]
[1721020128772,0.18452943,62839.0,62838.0,0.0008618]
[1721020128971,0.10930986,62839.0,62838.0,0.0008618]
[1721020129174,0.10930986,62839.0,62838.0,0.4395368]
[1721020129401,0.10930986,62839.0,62838.0,0.1440868]
[1721020129732,0.18452943,62839.0,62838.0,0.1460868]
[1721020129937,0.32775243,62839.0,62838.0,0.0028618]
[1721020130186,0.38775243,62839.0,62838.0,0.0028618]
[1721020130384,0.96064443,62839.0,62838.0,0.0068618]
[1721020130892,0.96064443,62839.0,62838.0,0.0028618]
[1721020131047,0.96264443,62839.0,62838.0,0.0028618]
[1721020131487,0.96264443,62839.0,62838.0,0.0118618]
[1721020131687,0.96064443,62839.0,62838.0,0.0118618]
[1721020132161,0.96264443,62839.0,62838.0,0.0118618]
[1721020132363,0.96264443,62839.0,62838.0,0.0008618]
[1721020132849,1.23295137,62839.0,62838.0,0.0008618]
[1721020133050,0.47515243,62839.0,62838.0,0.0008618]
[1721020133309,0.47515243,62839.0,62838.0,0.0028618]
[1721020133479,0.40995243,62839.0,62838.0,0.0028618]
[1721020133881,0.69839843,62839.0,62838.0,0.0028618]
[1721020134319,0.69639843,62839.0,62838.0,0.0028618]
[1721020134434,0.40995243,62839.0,62838.0,0.0008618]
[1721020134637,0.18552943,62839.0,62838.0,0.4305368]
[1721020134839,0.18552943,62839.0,62838.0,0.01244989]
[1721020135084,0.18552943,62839.0,62838.0,0.0008618]
[1721020135259,0.96164443,62839.0,62838.0,0.0008618]
[1721020135461,0.67519843,62839.0,62838.0,0.0038618]
[1721020135672,0.61519843,62839.0,62838.0,0.0038618]
[1721020135866,0.61519843,62839.0,62838.0,0.0008618]
[1721020136065,0.61519843,62839.0,62838.0,0.0068618]
[1721020136382,0.61519843,62839.0,62838.0,0.0008618]
[1721020136582,0.67419843,62839.0,62838.0,0.0008618]
[1721020137114,1.25519382,62839.0,62838.0,0.0018618]
[1721020137264,1.2551941,62839.0,62838.0,0.0018618]
[1721020137467,1.5416401,62839.0,62838.0,0.0008618]
[1721020137866,1.5436401,62839.0,62838.0,0.0038618]
[1721020138067,1.5436401,62839.0,62838.0,0.0008618]
[1721020138373,1.40239366,62839.0,62838.0,0.0008618]
[1721020138569,1.40239366,62839.0,62838.0,0.0038618]
[1721020139107,1.69249043,62839.0,62838.0,0.0038618]
[1721020139309,1.50239242,62839.0,62838.0,0.0038618]
[1721020139493,1.49249043,62839.0,62838.0,0.0038618]
[1721020139738,1.50439186,62839.0,62838.0,0.0038618]
[1721020140170,1.70439186,62839.0,62838.0,0.0038618]
[1721020140396,1.70239186,62839.0,62838.0,0.0038618]
[1721020140584,1.50239186,62839.0,62838.0,0.0038618]
[1721020140920,1.51439186,62839.0,62838.0,0.0048618]
[1721020141120,1.50239186,62839.0,62838.0,0.0038618]
[1721020141425,1.50239186,62839.0,62838.0,0.0008618]
[1721020141426,1.40239186,62839.0,62838.0,0.0008618]
[1721020141631,1.40239186,62839.0,62838.0,0.0018618]
[1721020141632,1.41439038,62839.0,62838.0,0.0018618]
[1721020141841,1.41939038,62839.0,62838.0,0.0028618]
[1721020142047,1.13294438,62839.0,62838.0,0.0018618]
[1721020142388,1.13794438,62839.0,62838.0,0.0028618]
[1721020142589,1.44431521,62839.0,62838.0,0.0018618]
[1721020142932,1.40739038,62839.0,62838.0,0.0018618]
[1721020143142,1.12594438,62839.0,62838.0,0.0018618]
[1721020143310,1.13394438,62839.0,62838.0,0.0018618]
[1721020143518,1.42039038,62839.0,62838.0,0.0018618]
[1721020143720,0.34265238,62839.0,62838.0,0.0008618]
[1721020143918,1.04074438,62839.0,62838.0,0.0008618]
[1721020144121,1.41939038,62839.0,62838.0,0.0105316]
[1721020144372,1.41939038,62839.0,62838.0,0.0018618]
[1721020144767,1.11704443,62839.0,62838.0,0.0018618]
[1721020145057,1.06693968,62839.0,62838.0,0.0018618]
[1721020146014,1.05173968,62839.0,62838.0,0.0008618]
[1721020146224,1.05173968,62839.0,62838.0,0.0018618]
[1721020146225,1.06173968,62839.0,62838.0,0.0018618]
[1721020146501,1.31736355,62839.0,62838.0,0.0018618]
[1721020146696,1.59380955,62839.0,62838.0,0.0008618]
[1721020147158,1.59880955,62839.0,62838.0,0.0008618]
[1721020147368,1.31236355,62839.0,62838.0,0.0008618]
[1721020147570,0.65301755,62839.0,62838.0,0.0008618]
[1721020147785,0.22334855,62839.0,62838.0,0.1440868]
[1721020147989,0.23134233,62839.0,62838.0,0.4315368]
[1721020148200,0.20641846,62839.0,62838.0,0.44020392]
[1721020148735,0.20141846,62839.0,62838.0,0.44020392]
[1721020149134,0.19441846,62839.0,62838.0,0.43920392]
[1721020149397,0.19441846,62839.0,62838.0,0.44920392]
[1721020149601,0.19441846,62839.0,62838.0,0.01952892]
[1721020149602,0.62908746,62839.0,62838.0,0.01952892]
[1721020149813,0.34264146,62839.0,62838.0,0.01952892]
[1721020150019,0.34264146,62839.0,62838.0,0.0108618]
[1721020150020,0.19941846,62839.0,62838.0,0.0108618]
[1721020150227,0.19441846,62839.0,62838.0,0.16271997]
[1721020150433,0.19541846,62839.0,62838.0,0.16871194]
[1721020150783,0.01088903,62839.0,62838.0,0.74161194]
[1721020150987,0.01088903,62839.0,62838.0,0.81981194]
[1721020151264,0.001,62839.0,62838.0,1.16846194]
[1721020151649,0.001,62839.0,62838.0,1.29146194]
[1721020152383,0.001,62839.0,62838.0,1.57791194]
[1721020152586,0.001,62839.0,62838.0,1.65860208]
[1721020152795,0.10930986,62856.0,62855.0,0.429559]
[1721020152993,0.19441819,62856.0,62855.0,0.58132886]
[1721020153398,0.11919835,62856.0,62855.0,0.86770186]
[1721020153602,0.10930986,62856.0,62855.0,0.86770186]
[1721020154022,0.10930986,62856.0,62855.0,0.87170186]
[1721020154448,0.18452943,62856.0,62855.0,0.58532886]
[1721020154870,0.18452943,62856.0,62855.0,0.44202886]
[1721020155108,0.18452943,62856.0,62855.0,0.45302886]
[1721020155361,0.18452943,62856.0,62855.0,0.16665586]
[1721020155609,0.18452943,62856.0,62855.0,0.15165586]
[1721020155814,0.18552943,62856.0,62855.0,0.16965586]
[1721020156234,0.18552943,62856.0,62855.0,0.45602886]
[1721020156379,0.10930986,62856.0,62855.0,0.44902886]
[1721020156591,0.11030986,62856.0,62855.0,0.45602886]
[1721020157527,0.18367293,62856.0,62855.0,0.02646986]
[1721020157936,0.32685693,62856.0,62855.0,0.01546986]
[1721020158129,0.38685693,62856.0,62855.0,0.02446986]
[1721020158340,0.95959293,62856.0,62855.0,0.02446986]
[1721020158488,0.95959293,62856.0,62855.0,0.007]
[1721020158683,0.95959293,62856.0,62855.0,0.018]
[1721020159029,0.61322493,62856.0,62855.0,0.018]
[1721020159204,0.61222493,62856.0,62855.0,0.011]
[1721020159406,0.32585693,62856.0,62855.0,0.03045721]
[1721020160130,0.18367293,62856.0,62855.0,0.03745721]
[1721020160625,0.32685693,62856.0,62855.0,0.03745721]
[1721020160829,0.67322493,62856.0,62855.0,0.029]
[1721020161246,0.95959293,62856.0,62855.0,0.029]
[1721020161567,0.96947807,62856.0,62855.0,0.029]
[1721020163234,1.39904607,62856.0,62855.0,0.029]
[1721020163846,1.98541407,62856.0,62855.0,0.029]
[1721020164021,1.81033183,62856.0,62855.0,0.029]
[1721020164227,1.90519122,62856.0,62855.0,0.029]
[1721020164442,1.8541087,62856.0,62855.0,0.007]
[1721020164679,2.17268294,62856.0,62855.0,0.007]
[1721020164908,2.0531087,62856.0,62855.0,0.009]
[1721020165089,1.24422893,62850.0,62849.0,0.00019153]
[1721020165290,1.32644808,62850.0,62849.0,0.00019153]
[1721020165509,1.27903183,62850.0,62849.0,0.00019153]
[1721020166475,1.3501562,62850.0,62849.0,0.00019153]
[1721020166668,1.0637602,62850.0,62849.0,0.00019153]
[1721020166889,1.0037602,62850.0,62849.0,0.00019153]
[1721020167291,0.92275057,62850.0,62849.0,0.00019153]
[1721020167689,0.92475057,62850.0,62849.0,0.00119153]
[1721020167910,0.98275057,62850.0,62849.0,0.00019153]
[1721020168241,0.99275057,62850.0,62849.0,0.00119153]
[1721020168537,0.98475057,62850.0,62849.0,0.00019153]
[1721020168971,0.99275057,62850.0,62849.0,0.00119153]
[1721020169267,0.92275057,62850.0,62849.0,0.00019153]
[1721020169417,0.98275057,62850.0,62849.0,0.00019153]
[1721020169619,0.99175057,62850.0,62849.0,0.00119153]
[1721020170051,0.93175057,62850.0,62849.0,0.00119153]
[1721020170500,0.91671071,62850.0,62849.0,0.00119153]
[1721020171615,0.97671071,62850.0,62849.0,0.00119153]
[1721020172036,1.10743293,62850.0,62849.0,0.00119153]
[1721020172335,1.39382893,62850.0,62849.0,0.00119153]
[1721020172715,1.59382893,62850.0,62849.0,0.00119153]
[1721020172916,1.39382893,62850.0,62849.0,0.00119153]
[1721020173132,1.38682893,62850.0,62849.0,0.00019153]
[1721020173336,1.97322493,62850.0,62849.0,0.00019153]
[1721020174004,1.99814572,62850.0,62849.0,0.00019153]
[1721020174368,2.00514572,62850.0,62849.0,0.00119153]
[1721020174770,2.00314572,62850.0,62849.0,0.00119153]
[1721020175134,2.00614572,62850.0,62849.0,0.00119153]
[1721020175872,1.80614572,62850.0,62849.0,0.00119153]
[1721020176218,1.41974972,62850.0,62849.0,0.00119153]
[1721020177275,1.27914972,62850.0,62849.0,0.00119153]
[1721020178282,1.27914972,62850.0,62849.0,0.001]
[1721020182986,1.37409203,62850.0,62849.0,0.001]
[1721020183191,0.35996172,62850.0,62849.0,0.0676]
[1721020183390,0.21676372,62850.0,62849.0,0.0676]
[1721020183893,0.19184293,62850.0,62849.0,0.15718385]
[1721020184244,0.18484293,62850.0,62849.0,0.07513147]
[1721020184758,0.18584293,62850.0,62849.0,0.21833147]
[1721020185193,0.18184293,62850.0,62849.0,0.07513147]
[1721020185583,0.18184293,62850.0,62849.0,0.22833147]
[1721020185778,0.10662336,62850.0,62849.0,0.22833147]
[1721020185979,0.10662336,62853.0,62852.0,0.143193]
[1721020186180,0.10662336,62853.0,62852.0,0.42958]
[1721020186404,0.10662336,62853.0,62852.0,0.43112873]
[1721020186635,0.18184293,62853.0,62852.0,0.43112873]
[1721020187147,0.00083,62856.0,62852.0,0.29480779]
[1721020187551,0.00083,62856.0,62855.0,0.143186]
[1721020187748,0.00083,62856.0,62855.0,0.429559]
[1721020187948,0.00083,62856.0,62855.0,0.43794827]
[1721020188306,0.00083,62856.0,62855.0,0.15157527]
[1721020188307,0.18267293,62856.0,62855.0,0.15157527]
[1721020188716,0.18248145,62856.0,62855.0,0.15157527]
[1721020188918,0.18248145,62856.0,62855.0,0.00838927]
[1721020189130,0.18248145,62856.0,62855.0,0.01738927]
[1721020189321,0.18248145,62856.0,62855.0,0.009]
[1721020189523,0.18248145,62856.0,62855.0,0.01738369]
[1721020190739,0.18248145,62856.0,62855.0,0.02138369]
[1721020191203,0.61203345,62856.0,62855.0,0.02138369]
[1721020191526,0.95840145,62856.0,62855.0,0.013]
[1721020191731,1.24476945,62856.0,62855.0,0.013]
[1721020192012,1.4059874,62856.0,62855.0,0.013]
[1721020192203,1.45353636,62856.0,62855.0,0.013]
[1721020192555,1.4059874,62856.0,62855.0,0.013]
[1721020192792,1.27959373,62856.0,62855.0,0.013]
[1721020192991,1.26968366,62856.0,62855.0,0.013]